Cogmind - Beta 14 @@@ ROGUE MODE // 2024.08.08 @ 01:22:28 Player: Olafz Result: Destroyed by Autobeam Turret with Autobeam Performance ------------- Evolutions (0) 0 Regions Visited (2) 400 Robots Destroyed (13) 65 Value Destroyed (461) 461 Prototype IDs (0) 0 Alien Tech Used (0) 0 Bonus (0) 0 TOTAL SCORE: 926 Bonus ------- None Cogmind --------- Core Integrity 0/250 Matter 214/300 Energy 98/100 System Corruption 0% Temperature Cool (6) Movement Rolling (107) Ox1 Location -10/Subcaves Parts ------- > --- POWER (1) -------- (None) > --- PROPULSION (2) --- Wheel Subdweller Monowheel > --- UTILITY (2) ------ Large Storage Unit Makeshift Light Armor Plating > --- WEAPON (2) ------- Subdweller Laser Barrage Gun > --- INVENTORY (15) --- Ion Engine Subdweller Power Source Subdweller Power Source Light Treads Spiked Treads Wheel Wheel Wheel Large Storage Unit Scrap Shield Scrap Shield Beam Rifle Subdweller Beam Cannon Peak State ------------ > --- POWER ------------ Makeshift Power Source > --- PROPULSION ------- Wheel Subdweller Monowheel > --- UTILITY ---------- Large Storage Unit Makeshift Light Armor Plating > --- WEAPON ----------- Particle Gun Barrage Gun > --- INVENTORY -------- Ion Engine Subdweller Power Source Subdweller Power Source Light Treads Spiked Treads Wheel Wheel Wheel Large Storage Unit Scrap Shield Scrap Shield Beam Rifle Subdweller Beam Cannon [Rating: 19] Favorites ----------- Power Light Ion Engine Engine Light Ion Engine Propulsion Aluminum Leg Treads Light Treads Leg Aluminum Leg Wheel Wheel Utility Large Storage Unit Device Subdweller Optics Storage Large Storage Unit Protection Makeshift Light Armor Plating Weapon Assault Rifle Energy Gun Particle Gun Energy Cannon Beam Cannon Ballistic Gun Assault Rifle Build | -11 -10 -10 ------- Run | Yrd Mat Sub Slots Evolved . | . . . Power . | . . . Propulsion . | . . . Utility . | . . . Weapon . | . . . Parts Attached 16 | . 2 14 Power 1 | . . 1 Engine 1 | . . 1 Core . | . . . Reactor . | . . . Propulsion 5 | . . 5 Treads 2 | . . 2 Leg . | . . . Wheel 3 | . . 3 Hover . | . . . Flight . | . . . Utility 3 | . 1 2 Device 1 | . . 1 Storage 1 | . 1 . Processor . | . . . Hackware . | . . . Protection 1 | . . 1 Artifact . | . . . Weapon 7 | . 1 6 Energy Gun 4 | . . 4 Energy Cannon 1 | . 1 . Ballistic Gun 2 | . . 2 Ballistic Cannon . | . . . Launcher . | . . . Special Weapon . | . . . Impact Weapon . | . . . Slashing Weapon . | . . . Piercing Weapon . | . . . Special Melee Weapon . | . . . Unidentified Prototypes . | . . . Parts Lost 8 | . . 8 Power 1 | . . 1 Propulsion 3 | . . 3 Utility . | . . . Weapon 4 | . . 4 Highest Loss Streak 4 | . . 4 To Critical Strikes . | . . . Average Slot Usage (%) 91 | . 85 97 Engine 14 | . 14 14 Treads 6 | . . 11 Leg 17 | . 28 8 Wheel 4 | . . 7 Device 4 | . . 8 Storage 14 | . 14 14 Protection 2 | . . 3 Energy Gun 7 | . 2 11 Energy Cannon 6 | . 11 2 Ballistic Gun 14 | . 14 14 Peak Build Rating 19 | . 7 19 Average Rating 10 | . 6 13 On Entrance 6 | 6 6 6 Naked Turns . | . . . Heaviest Build 35 | 12 32 35 Greatest Support 40 | 20 20 40 Greatest Overweight (x) 1 | . 1 1 Average Overweight (x) . | . . . Largest Inventory Capacity 15 | . 15 15 Average Capacity 14 | . 14 15 Most Carried 15 | . 9 15 Average Carried 10 | . 8 12 Final Capacity 15 | 8 15 15 Final Carried 15 | 6 9 15 Class Distribution -------------------- 92% | Mutant 7% | Scavenger-Mutant Dominant Class ---------------- Mutant | -10/Materials Mutant | -10/Subcaves Resources | -11 -10 -10 ----------- Run | Yrd Mat Sub Matter Collected 500 | 200 40 260 Remotely . | . . . Salvage Created 530 | . 201 329 Parts 27 | . 6 21 Haulers Intercepted . | . . . Recyclers Shooed . | . . . Parts Field Recycled . | . . . Retrieved Matter . | . . . Parts Self-Destructed 9 | . . 9 Prevented . | . . . Kills | -11 -10 -10 ------- Run | Yrd Mat Sub Combat Hostiles Destroyed 12 | . 4 8 Guns 10 | . 2 8 Cannons 2 | . 2 . Classes Destroyed 4 | . 2 2 Builder 1 | . 1 . Grunt 7 | . 4 3 Sentry 1 | . . 1 Subdweller 4 | . . 4 Best Kill Streak 4 | . 3 4 Combat Bots Only 4 | . 2 4 Max Kills in Single Turn 1 | . 1 1 Gunslinging . | . . . Exploded . | . . . Melee . | . . . Uniques/NPCs Destroyed . | . . . Combat | -11 -10 -10 -------- Run | Yrd Mat Sub Hostile Shots Fired 138 | . 29 109 Missed 38 | . 4 34 Damage Taken 1434 | . 277 1157 Core 250 | . 24 226 Absorbed by Shields . | . . . Core Remaining (%) 100 | 100 . . Volleys Fired 114 | . 21 93 Largest 2 | . 2 2 Hottest 121 | . 80 121 Shots Fired 219 | . 42 177 Gun 204 | . 31 173 Cannon 15 | . 11 4 Launcher . | . . . Special . | . . . Kinetic 91 | . 21 70 Thermal 128 | . 21 107 Explosive . | . . . Electromagnetic . | . . . Robot Hit Streak 22 | . 7 22 Robot Miss Streak 2 | . 2 1 Penetration Max . | . . . Secondary Targets 3 | . 1 2 Max Gunslinging Chain 1 | . 1 1 Shots Hit Robots 93 | . 26 67 Core Hits 23 | . 7 16 Critical Kills . | . . . Critical Parts Destroyed . | . . . Critical Strikes 5 | . 3 2 Burn 5 | . 3 2 Melee Attacks . | . . . Impact . | . . . Slashing . | . . . Piercing . | . . . Sneak Attacks . | . . . Combat Hostiles . | . . . Follow-up Attacks . | . . . Damage Inflicted 1224 | . 390 834 Guns 1001 | . 239 762 Cannons 211 | . 139 72 Explosions . | . . . Melee . | . . . Ramming 12 | . 12 . Kinetic 518 | . 164 354 Thermal 694 | . 214 480 Explosive . | . . . Electromagnetic . | . . . Impact . | . . . Slashing . | . . . Piercing . | . . . Highest Corruption . | . . . Average Corruption . | . . . Corruption Purged . | . . . Corruption Blocked . | . . . Overload Shots . | . . . Overflow Damage . | . . . Projectiles . | . . . Explosions . | . . . Melee . | . . . Knockbacks 1 | . 1 . Impact 1 | . 1 . Kinetic . | . . . Secondary . | . . . Self-Inflicted Damage . | . . . Shots . | . . . Rammed . | . . . Targets Rammed 1 | . 1 . Kicked 1 | . 1 . Crushed . | . . . Highest Temperature 336 | . 248 336 Average Temperature 73 | . 93 65 Received Heat Transfer 546 | . 150 396 Effects 2 | . 1 1 Energy Bleed 2 | . 1 1 Siege Activations . | . . . Robots Corrupted . | . . . Combat Hostiles . | . . . Parts Fried . | . . . Impact Corruptions . | . . . Robots Melted . | . . . Combat Hostiles . | . . . Parts Melted 1 | . . 1 Heat Transferred 2109 | . 740 1369 Parts Sabotaged . | . . . Parts Stolen . | . . . Parts Stripped . | . . . Power Chain Reactions . | . . . Alert | -11 -10 -10 ------- Run | Yrd Mat Sub Peak Influence 74 | . 74 . Initial . | . . . Average 42 | . 42 . Maximum Alert Level . | . . . Low Security (%) 100 | . 100 . Level 1 . | . . . Level 2 . | . . . Level 3 . | . . . Level 4 . | . . . Level 5 . | . . . High Security . | . . . Max Security . | . . . Squads Dispatched 3 | . 3 . Investigation . | . . . Extermination . | . . . Reinforcement 3 | . 3 . Assault . | . . . Garrison . | . . . Intercept . | . . . Searches Triggered . | . . . Construction Impeded . | . . . Haulers Reinforced . | . . . Active Scanning Responses . | . . . Cargo Convoy Interrupts . | . . . Stealth | -11 -10 -10 --------- Run | Yrd Mat Sub Distress Signals . | . . . Communications Jammed . | . . . Distress Signals . | . . . Times Spotted 21 | . 6 15 Peak Tracking Total 6 | . 3 6 Tactical Retreats . | . . . Traps | -11 -10 -10 ------- Run | Yrd Mat Sub Traps Triggered . | . . . Indirectly . | . . . Trap Hack Attempts . | . . . Triggered . | . . . Disarmed . | . . . Reprogrammed . | . . . Reused . | . . . Traps Extracted . | . . . Installed . | . . . Triggered . | . . . Machines | -11 -10 -10 ---------- Run | Yrd Mat Sub Machines Disabled . | . . . Max in Single Turn . | . . . Machines Repaired . | . . . Machines Dismantled . | . . . Machines Sabotaged . | . . . Overloaded Fab Kills . | . . . Hacking | -11 -10 -10 --------- Run | Yrd Mat Sub Machines Accessed 3 | . 2 1 Terminals 2 | . 2 . Fabricators . | . . . Repair Stations . | . . . Recycling Units . | . . . Scanalyzers . | . . . Garrison Access . | . . . Total Hacks 8 | . 4 4 Successful 7 | . 3 4 Failed 1 | . 1 . Catastrophic . | . . . Database Lockouts . | . . . Manual 3 | . 3 . Terminals 4 | . 4 . Fabricators . | . . . Repair Stations . | . . . Recycling Units . | . . . Scanalyzers . | . . . Garrison Access . | . . . Terminal Hacks 5 | . 1 4 Record 4 | . . 4 Robot Analysis 1 | . 1 . Fabricator Hacks . | . . . Repair Station Hacks . | . . . Recycling Unit Hacks . | . . . Scanalyzer . | . . . Garrison Access Hacks . | . . . Unauthorized Hacks 2 | . 2 . Terminals 2 | . 2 . Botnet 2 | . 2 . Fabricators . | . . . Repair Stations . | . . . Recycling Units . | . . . Scanalyzers . | . . . Garrison Access . | . . . Data Cores Recovered . | . . . Used . | . . . Hacking Detections 1 | . 1 . Full Trace Events . | . . . Feedback Events . | . . . Feedback Blocked . | . . . Robot Schematics Acquired . | . . . Robots Built . | . . . Authchips . | . . . Time . | . . . Total Robot Build Rating . | . . . Part Schematics Acquired . | . . . Parts Built . | . . . Authchips . | . . . Time . | . . . Total Part Build Rating . | . . . Parts Repaired . | . . . Time . | . . . Parts Recycled . | . . . Recycled Matter . | . . . Retrieved Matter . | . . . Retrieved Components . | . . . Parts Scanalyzed . | . . . Part Schematics Acquired . | . . . Parts Damaged . | . . . Bothacking | -11 -10 -10 ------------ Run | Yrd Mat Sub Used RIF Installer . | . . . Robots Hacked . | . . . Non-combat . | . . . Combat . | . . . Robot Hacks Applied . | . . . Relay Couplers Released . | . . . Fabnet Peak Effective % . | . . . Robots Rewired . | . . . Allies Hacked . | . . . Hacks Repelled . | . . . Allies | -11 -10 -10 -------- Run | Yrd Mat Sub Total Allies . | . . . Largest Group . | . . . Highest-Rated Group . | . . . Highest-Rated Ally . | . . . Total Orders . | . . . Ally Attacks . | . . . Total Damage . | . . . Kills . | . . . Allies Corrupted . | . . . Allies Melted . | . . . Intel | -11 -10 -10 ------- Run | Yrd Mat Sub Robot Analysis Total 1 | . 1 . Derelict Logs Recovered . | . . . Drone Launches . | . . . Drone Recoveries . | . . . Exploration | -11 -10 -10 ------------- Run | Yrd Mat Sub Turns Passed 2254 | . 1015 1239 Spaces Moved 734 | 1 101 632 Core . | . . . Treads 214 | . . 214 Legs 273 | 1 101 171 Wheels 247 | . . 247 Hover . | . . . Flight . | . . . Fastest Speed 95 | 120 120 95 Average Speed 152 | 120 186 147 Slowest Speed 190 | 120 190 190 Overloaded Moves . | . . . Propulsion Burnouts . | . . . Robots Hopped . | . . . Cave-ins Triggered . | . . . Exploration Rate (%) 22 | 2 28 36 Regions Visited 2 Branch Regions 1 Pre-discovered Areas . | . . . Known Exits Taken . | . . . Unknown Exits Taken 2 | 1 1 . Scrap Searched 2 | . . 2 Spaces Dug . | . . . Terrain Destroyed . | . . . Melee . | . . . Projectile . | . . . AOE . | . . . Terrain Rammed . | . . . Walls Destroyed . | . . . Machines Disabled . | . . . Actions | -11 -10 -10 --------- Run | Yrd Mat Sub Total 1659 | . 886 773 Wait 776 | . 757 19 Move 732 | . 100 632 Hop . | . . . Pick Up 11 | . 2 9 Fast Attach 6 | . 2 4 Attach 7 | . . 7 Detach 4 | . 2 2 Swap 3 | . . 3 Drop 5 | . 1 4 Fire 114 | . 21 93 Melee . | . . . Ram . | . . . Kick 1 | . 1 . Crush . | . . . Escape Stasis . | . . . Rewire . | . . . Trap . | . . . Miscellaneous . | . . . Route ------- -11/Scrapyard -10/Materials (discovered 2 exits: [*Mat] / *Sub) -10/Subcaves (discovered 1 exit: [*Rec]) History --------- Turn | Location | Event 1 | -11/Scrapyard | Discovered new exit (range 0) 1 | -11/Scrapyard | Entered Materials 128 | -10/Materials | Discovered new exit (range 14) 310 | -10/Materials | Build established: Mutant 988 | -10/Materials | Discovered new exit (range 7) 1016 | -10/Materials | Entered Subcaves 1144 | -10/Subcaves | Shifting Twisted Machinery released Scrap Shield 1185 | -10/Subcaves | Ambushed by angry Subdweller bent on revenge 1231 | -10/Subcaves | Shifting Twisted Machinery released Sub. Power Source 1392 | -10/Subcaves | Core integrity fell below 50% 1425 | -10/Subcaves | Lost 4 parts (2n2w) 1460 | -10/Subcaves | Shifting Twisted Machinery released Mak. System Shield 1667 | -10/Subcaves | Shifting Twisted Machinery released Barrage Gun 1829 | -10/Subcaves | Visited Clippyterm 1834 | -10/Subcaves | Learned Factory garrison access intel 1908 | -10/Subcaves | Disturbed a concealed Subdweller 1909 | -10/Subcaves | Core integrity fell below 20% 1997 | -10/Subcaves | Shifting Twisted Machinery released Sub. Power Source 2252 | -10/Subcaves | Discovered new exit (range 8) 2255 | -10/Subcaves | Destroyed by Autobeam Turret with Autobeam Last Messages --------------- Found Spk. Treads. Found 57 Matter. Acquired 22 matter. Acquired Spk. Treads. Searching scrap... Found Mak. Light Armor Plating. Found Sub. Power Source. Found 40 Matter. Dropped Sub. Power Source. Acquired Sub. Power Source. Dropped Broken Sub. Optics. Acquired Mak. Light Armor Plating. Sub. Power Source falls loose from the Twisted Machinery. 72-GCX(R) destroyed. Acquired 25 matter. Dropped Particle Gun. S-10 Pest springs to life. EXIT=FOUND S-10 Pest springs to life. Mak. Power Source destroyed. Map ----- +----------------------------------------------------+ | ??????????????????????????????????# " & "#??????? | | ??????????????????????????????????# "&&"%%#??????? | | ??????????????????????????????????# " !"###??????? | | ??????????????????????????????????# "" "##??????? | | ??????????????????????????????????#### "" #??????? | | ??????????????????????????????????## " #??????? | | ??????????????????????????????????# ##?????? | | ????????????????????????##????????# ##????? | | ???????????????????????## ????????# ##???? | | ??????????????????????## ????????# ##### | | ?????????????????????## ????????## ## # | | ????????????????????## ?????????##?# | | ????????????????????# ?????####???# | | ???????????????????## ##??## #???## | | ???????????????? # #### #????# | | ???????????????# ##???# ## | | ???????????????? ##### ### | | ???????????????????????# ### | | ???????????????????????# #? | | ???????????????????????# ## #? | | ???????????????????????# ### #? | | ???????????????????????# ####### | | ????????????????????#### #### ## # | | ????????????????????#"s "# | | ????????????????????# s s# ## | | ????????????????????# @ s# ### ## # | | ????????????????????#" t t "# ##?# ##### | | ????????????????????#" " " "## ######??####???? | | ????????????????????#"""" """"#####??????????????? | | ????????????????????#####<#####??????????????????? | | ????????????????????????###??????????????????????? | | ?????????????????????????????????????????????????? | | ?????????????????????????????????????????????????? | | ?????????????????????????????????????????????????? | | ?????????????????????????????????????????????????? | | ?????????????????????????????????????????????????? | | ?????????????????????????????????????????????????? | | ?????????????????????????????????????????????????? | | ?????????????????????????????????????????????????? | | ?????????????????????????????????????????????????? | | ?????????????????????????????????????????????????? | | ?????????????????????????????????????????????????? | | ?????????????????????????????????????????????????? | | ?????????????????????????????????????????????????? | | ?????????????????????????????????????????????????? | | ?????????????????????????????????????????????????? | | ?????????????????????????????????????????????????? | | ?????????????????????????????????????????????????? | | ?????????????????????????????????????????????????? | | ?????????????????????????????????????????????????? | +----------------------------------------------------+ Best States ------------- Heat Dissipation 25 Energy Generation 15 Energy Capacity 170 Matter Stores 300 Matter Capacity 300 Sight Range 21 Terrain Scan Density 10 Armor Coverage 100 Evasion (%) 40 Recoil Reduction 2 Item Schematics ----------------- None Robot Schematics ------------------ None Fabricated ------------ Nothing Alien Tech Used ----------------- None Achievements -------------- None Challenges ------------ None Game ------ Seed SwarmScrapoidProjector Manual? 0 Play Time 00:10:21 Cumulative 174.0 hours Start 2024.08.08 @ 01:12:06 End 2024.08.08 @ 01:22:28 Sessions 1 Manual Loads 0 Difficulty Rogue Special Mode None Game No. 289 Rogue 287 Adventurer 2 Explorer 0 Win Type - Total 5 Types 4/0/0/1/0/0/0/0/0 Lore% 63 Gallery% 62 Achievement% 52 Wizard Run 0 Options --------- Layout 0 ASCII 0 Keyboard 1 Movement Numpad Keybinds 1 Fullscreen 2 Font 18/SmallcapsGlow Map View 76x50 Zoom Use 0% Tactical HUD 1 Map Filters NONE Filters NONE Steam 1 RUN: 4eb750dd-a886-4c6c-9ad2-2f0ac1c2db04